bitfinex/quotes_SOLUSD_20230703
["timestamp","ask_amount","ask_price","bid_price","bid_amount"]
[1688412678405,21.924,19.294,19.29,21.927]
[1688412678711,55.0,19.3,19.287,21.931]
[1688412678911,55.0,19.301,19.287,21.931]
[1688412680117,21.919,19.299,19.287,21.931]
[1688412680293,55.0,19.298,19.287,21.931]
[1688412680502,21.923,19.295,19.287,21.931]
[1688412680701,20.0,19.294,19.287,21.931]
[1688412680896,41.924,19.294,19.287,21.931]
[1688412681291,55.0,19.293,19.281,146.6608]
[1688412681494,21.928,19.291,19.284,21.934]
[1688412681707,55.0,19.29,19.284,21.934]
[1688412682002,21.93,19.289,19.284,21.934]
[1688412682413,21.933,19.286,19.274,56.498]
[1688412682600,21.932,19.287,19.279,21.94]
[1688412682802,75.0,19.286,19.279,21.94]
[1688412683000,96.933,19.286,19.279,21.94]
[1688412683599,21.933,19.286,19.278,21.941]
[1688412684007,21.935,19.284,19.278,21.941]
[1688412684219,75.0,19.285,19.278,21.941]
[1688412684512,96.934,19.285,19.278,21.941]
[1688412685297,96.934,19.285,19.273,147.9422]
[1688412685503,96.934,19.285,19.276,21.943]
[1688412686217,20.0,19.285,19.276,21.943]
[1688412686418,21.934,19.285,19.276,21.943]
[1688412687002,21.937,19.283,19.276,21.943]
[1688412687502,21.937,19.283,19.273,91.4402]
[1688412687503,21.937,19.283,19.275,21.945]
[1688412688211,21.936,19.284,19.275,21.945]
[1688412689620,56.464,19.287,19.275,21.945]
[1688412689821,75.0,19.286,19.275,21.945]
[1688412690202,21.936,19.284,19.275,21.945]
[1688412693709,21.934,19.286,19.275,78.443]
[1688412693931,56.443,19.294,19.276,55.0]
[1688412694220,21.928,19.291,19.281,21.938]
[1688412694719,102.971,19.297,19.281,78.418]
[1688412694913,21.927,19.291,19.281,78.418]
[1688412696223,20.0,19.296,19.281,78.418]
[1688412696434,21.926,19.292,19.281,78.418]
[1688412697224,20.0,19.297,19.286,21.932]
[1688412697426,21.919,19.299,19.286,21.932]
[1688412697605,21.918,19.3,19.286,21.932]
[1688412697806,21.918,19.299,19.286,21.932]
[1688412698011,21.918,19.3,19.286,21.932]
[1688412699029,21.914,19.303,19.29,31.93]
[1688412699214,21.914,19.303,19.293,181.356]
[1688412699916,21.913,19.303,19.293,181.356]
[1688412700410,56.407,19.307,19.293,181.356]
[1688412700611,20.0,19.306,19.293,181.356]
[1688412700811,76.398,19.309,19.294,55.0]
[1688412701114,21.911,19.306,19.298,21.918]
[1688412701308,21.913,19.304,19.298,21.918]
[1688412701521,21.913,19.304,19.293,56.445]
[1688412701824,21.913,19.304,19.296,21.921]
[1688412704120,21.911,19.305,19.296,21.921]
[1688412704312,31.93,19.32,19.297,55.0]
[1688412704517,21.907,19.309,19.303,21.912]
[1688412705032,21.907,19.309,19.298,56.428]
[1688412705245,21.907,19.309,19.303,21.913]
[1688412705529,21.907,19.309,19.299,56.425]
[1688412706108,21.907,19.309,19.302,21.913]
[1688412709029,21.907,19.309,19.298,56.43]
[1688412709328,21.907,19.309,19.302,21.914]
[1688412710415,21.904,19.312,19.302,21.914]
[1688412711128,21.903,19.312,19.302,21.914]
[1688412711325,56.38,19.316,19.302,21.914]
[1688412711627,20.0,19.315,19.302,21.914]
[1688412712039,20.0,19.315,19.302,118.4476]
[1688412712336,21.903,19.313,19.302,118.4476]
[1688412714033,21.906,19.309,19.302,118.4476]
[1688412715629,21.906,19.31,19.302,118.4476]
[1688412715836,21.906,19.31,19.302,21.914]
[1688412717441,21.906,19.31,19.296,10.83719922]
[1688412717442,20.0,19.309,19.29,31.93]
[1688412717619,21.913,19.304,19.296,21.92]
[1688412719837,78.326,19.304,19.292,150.4851]
[1688412720622,78.326,19.304,19.296,21.921]
[1688412721034,21.911,19.306,19.296,21.921]
[1688412721224,21.908,19.308,19.296,21.921]
[1688412721432,21.907,19.309,19.296,21.921]
[1688412721837,21.907,19.309,19.297,55.0]
[1688412722140,21.907,19.309,19.3,78.339]
[1688412722926,56.383,19.315,19.3,110.269]
[1688412723229,20.0,19.314,19.301,55.0]
[1688412723431,41.902,19.314,19.304,78.321]
[1688412723630,102.854,19.319,19.304,78.321]
[1688412723631,102.835,19.323,19.304,78.321]
[1688412723827,21.897,19.318,19.305,85.83719922]
[1688412724028,21.897,19.318,19.308,78.304]
[1688412724331,78.269,19.318,19.3,31.93]
[1688412724538,21.897,19.318,19.308,21.907]
[1688412730046,21.896,19.319,19.309,55.0]
[1688412730332,21.896,19.319,19.312,21.903]
[1688412731553,21.895,19.32,19.312,21.903]
[1688412731946,21.891,19.323,19.313,55.0]
[1688412732149,21.892,19.322,19.316,21.898]
[1688412733437,21.892,19.322,19.311,102.89]
[1688412733645,21.892,19.322,19.31,31.93]
[1688412734543,21.892,19.322,19.314,21.9]
[1688412734939,21.892,19.322,19.314,78.283]
[1688412735144,21.892,19.322,19.314,21.9]
[1688412737452,21.892,19.322,19.314,21.901]
[1688412742951,124.728,19.322,19.306,94.6011]
[1688412743255,55.0,19.321,19.308,21.907]
[1688412743565,78.27,19.318,19.308,21.907]
[1688412744758,21.897,19.318,19.308,21.907]
[1688412745865,21.897,19.318,19.304,21.912]
[1688412746167,21.901,19.314,19.307,21.908]
[1688412747451,56.37,19.319,19.307,32.74519922]
[1688412748849,21.9,19.315,19.307,32.74519922]
[1688412749056,21.9,19.315,19.307,21.908]
[1688412749763,21.899,19.316,19.307,21.908]
[1688412749947,21.898,19.317,19.307,135.66119922]
[1688412750148,21.898,19.317,19.307,32.74519922]
[1688412750351,21.898,19.317,19.307,21.908]
[1688412752265,21.898,19.317,19.307,78.312]
[1688412755260,102.827,19.324,19.308,10.83719922]
[1688412755261,56.356,19.324,19.308,10.83719922]
[1688412755465,21.895,19.32,19.312,21.902]
[1688412757157,21.894,19.32,19.312,21.902]
[1688412762977,21.894,19.32,19.313,55.0]
[1688412763164,21.894,19.32,19.315,21.899]
[1688412766063,21.894,19.32,19.313,21.901]
[1688412766259,21.894,19.32,19.314,21.901]
[1688412768178,21.894,19.321,19.314,21.901]
[1688412770374,31.73,19.33,19.314,21.901]
[1688412770683,177.802,19.329,19.314,21.901]
[1688412770987,21.889,19.325,19.314,21.901]
[1688412771362,56.338,19.33,19.315,20.0]
[1688412771563,21.887,19.327,19.321,21.892]
[1688412771777,21.885,19.328,19.321,78.255]
[1688412772564,21.885,19.328,19.321,21.892]
[1688412775596,21.884,19.329,19.321,124.733]
[1688412776978,21.884,19.329,19.321,21.892]
[1688412778376,21.882,19.331,19.321,21.892]
[1688412778583,56.325,19.335,19.321,21.892]
[1688412778889,21.882,19.331,19.321,21.892]
[1688412780183,21.876,19.336,19.321,124.733]
[1688412780384,12.93326435,19.337,19.322,75.0]
[1688412780681,34.80926435,19.337,19.326,181.046]
[1688412782382,12.93326435,19.337,19.326,181.046]
[1688412782801,75.0,19.336,19.319,69.60864394]
[1688412782995,21.882,19.331,19.319,102.846]
[1688412783205,21.882,19.331,19.318,93.0074]
[1688412783206,55.0,19.33,19.323,21.889]
[1688412783387,21.885,19.328,19.323,21.889]
[1688412783700,21.885,19.328,19.322,21.891]
[1688412784197,21.885,19.328,19.315,21.899]
[1688412784500,56.34,19.329,19.315,21.899]
[1688412785102,55.0,19.328,19.315,21.899]
[1688412785899,21.888,19.326,19.315,78.28]
[1688412786395,21.886,19.328,19.315,78.28]
[1688412786899,12.93326435,19.337,19.315,78.28]
[1688412787103,20.0,19.336,19.32,78.258]
[1688412787281,21.881,19.332,19.32,78.258]
[1688412787482,21.881,19.332,19.32,89.09519922]
[1688412787895,20.0,19.336,19.321,10.83719922]
[1688412788094,21.879,19.334,19.321,65.83719922]
[1688412788300,21.879,19.334,19.324,78.24]
[1688412788496,20.0,19.336,19.324,78.24]
[1688412788795,21.878,19.334,19.324,78.24]
[1688412789100,21.878,19.334,19.324,21.888]
[1688412789989,20.0,19.336,19.324,21.888]
[1688412790192,12.93326435,19.337,19.325,10.83719922]
[1688412790503,12.93326435,19.337,19.329,21.883]
[1688412794686,12.93326435,19.337,19.329,78.223]
[1688412803510,12.93326435,19.337,19.329,181.021]
[1688412803822,6.435e-05,19.337,19.332,180.993]
[1688412803990,56.274,19.352,19.338,180.931]
[1688412804392,21.862,19.349,19.338,180.931]
[1688412805204,21.862,19.349,19.338,78.184]
[1688412805606,55.0,19.348,19.338,78.184]
[1688412805908,21.865,19.346,19.338,78.184]
[1688412806098,55.0,19.348,19.338,78.184]
[1688412806099,76.866,19.345,19.338,78.184]
[1688412806299,21.865,19.346,19.338,78.184]
[1688412806494,55.0,19.345,19.338,78.184]
[1688412806695,56.284,19.349,19.338,78.184]
[1688412806899,21.863,19.348,19.338,78.184]
[1688412807087,55.0,19.347,19.338,78.184]
[1688412807799,76.864,19.347,19.338,78.184]
[1688412811810,55.0,19.347,19.338,180.935]
[1688412812197,55.0,19.348,19.338,180.935]
[1688412812510,76.863,19.348,19.338,180.935]
[1688412812707,76.863,19.348,19.338,78.184]
[1688412818404,179.56,19.348,19.338,21.873]
[1688412819207,21.863,19.348,19.338,21.873]
[1688412820214,78.147,19.348,19.338,21.873]
[1688412820509,78.161,19.345,19.333,102.775]
[1688412820715,21.869,19.342,19.337,21.874]
[1688412820891,56.295,19.345,19.33,162.41978793]
[1688412820892,21.873,19.339,19.332,21.879]
[1688412821095,21.875,19.338,19.333,21.878]
[1688412821718,21.875,19.338,19.332,21.879]
[1688412822015,21.875,19.338,19.331,21.881]
[1688412824496,55.0,19.337,19.327,21.886]
[1688412824701,180.99,19.333,19.32,56.365]
[1688412825017,55.0,19.332,19.316,92.931]
[1688412825197,181.034,19.328,19.316,114.828]
[1688412825398,78.245,19.324,19.315,21.898]
[1688412825601,181.07,19.324,19.314,20.0]
[1688412825799,21.894,19.32,19.313,21.902]
[1688412826017,21.894,19.32,19.315,20.0]
[1688412826527,21.894,19.32,19.315,41.899]
[1688412826818,21.894,19.32,19.315,20.0]
[1688412827012,21.894,19.32,19.315,41.899]
[1688412828116,21.894,19.32,19.315,20.0]
[1688412828318,21.894,19.32,19.31,20.0]
[1688412828530,21.894,19.32,19.314,21.9]
[1688412828730,21.894,19.32,19.315,20.0]
[1688412829427,21.894,19.32,19.314,21.901]
[1688412829626,21.894,19.32,19.315,20.0]
[1688412829926,21.894,19.32,19.315,41.899]
[1688412830505,56.351,19.326,19.315,41.899]
[1688412830704,21.893,19.321,19.315,41.899]
[1688412831201,56.344,19.328,19.315,41.899]
[1688412831406,21.89,19.324,19.315,41.899]
[1688412832322,21.888,19.326,19.315,41.899]
[1688412833210,21.888,19.326,19.315,137.2951]
[1688412840627,21.888,19.326,19.316,55.0]
[1688412840822,21.888,19.326,19.319,78.264]
[1688412841024,21.888,19.326,19.319,21.895]
[1688412841025,78.236,19.326,19.319,21.895]
[1688412843515,21.888,19.326,19.319,21.895]
[1688412843729,21.887,19.327,19.319,21.895]
[1688412848328,78.248,19.323,19.317,21.897]
[1688412848532,78.248,19.323,19.316,84.17333237]
[1688412849715,21.891,19.323,19.316,84.17333237]
[1688412850228,21.89,19.324,19.316,84.17333237]
[1688412851219,3.0,19.346,19.316,84.17333237]
[1688412851220,31.71,19.35,19.317,63.23876652]
[1688412851426,56.297,19.344,19.32,159.18]
[1688412851628,56.297,19.344,19.327,181.039]
[1688412851814,56.297,19.344,19.328,141.39092016]
[1688412852016,21.871,19.341,19.332,21.879]
[1688412852712,21.87,19.342,19.332,21.879]
[1688412852912,21.868,19.343,19.332,21.879]
[1688412853317,21.868,19.344,19.332,21.879]
[1688412854829,31.71,19.35,19.332,21.879]
[1688412855130,102.685,19.351,19.338,78.186]
[1688412855131,21.866,19.345,19.338,78.186]
[1688412855719,56.283,19.349,19.338,78.186]
[1688412855919,21.865,19.346,19.338,78.186]
[1688412856136,76.866,19.345,19.338,78.186]
[1688412857929,21.864,19.347,19.338,78.186]
[1688412858231,21.863,19.348,19.338,78.186]
[1688412858433,76.864,19.347,19.338,78.186]
[1688412859433,55.0,19.347,19.338,78.186]
[1688412859617,21.863,19.348,19.338,78.186]
[1688412859822,21.861,19.35,19.338,78.186]
[1688412860028,56.269,19.354,19.338,78.186]
[1688412861229,21.86,19.35,19.338,78.186]
[1688412862628,56.271,19.356,19.338,89.02319922]
[1688412862832,20.0,19.355,19.34,31.93]
[1688412863024,21.861,19.35,19.344,21.866]
[1688412863538,20.0,19.355,19.344,21.866]
[1688412863539,21.859,19.351,19.344,78.162]
[1688412863742,20.0,19.355,19.344,78.162]
[1688412863920,55.0,19.354,19.344,78.162]
[1688412864738,21.859,19.351,19.344,78.162]
[1688412864941,21.859,19.351,19.344,21.866]
[1688412870750,21.859,19.351,19.344,78.162]
[1688412878350,124.541,19.351,19.334,56.323]
[1688412878547,55.0,19.35,19.335,20.0]
[1688412878752,78.157,19.346,19.337,21.874]
[1688412878950,55.0,19.345,19.335,20.0]
[1688412879139,78.171,19.342,19.335,41.877]
[1688412879633,21.869,19.342,19.335,98.199]
[1688412879948,21.868,19.343,19.335,98.199]
[1688412880335,56.283,19.349,19.335,200.966]
[1688412880535,55.0,19.348,19.335,200.966]
[1688412880950,21.865,19.346,19.335,98.199]
[1688412881151,55.0,19.345,19.335,98.199]
[1688412881336,21.869,19.343,19.335,98.199]
[1688412882548,55.0,19.342,19.335,21.877]
[1688412882753,21.871,19.34,19.335,21.877]
[1688412885243,21.87,19.341,19.335,21.877]
[1688412886454,21.871,19.341,19.335,21.877]
[1688412888165,78.176,19.341,19.335,21.877]
[1688412888864,78.176,19.341,19.329,102.794]
[1688412888865,78.176,19.341,19.329,179.59700602]
[1688412889051,78.176,19.341,19.332,21.88]
[1688412889445,21.871,19.341,19.332,21.88]
[1688412891367,78.176,19.341,19.332,21.88]
[1688412891658,21.871,19.341,19.332,21.88]
[1688412892072,78.176,19.341,19.332,21.88]
[1688412894061,21.871,19.341,19.332,21.88]
[1688412896367,21.871,19.341,19.332,124.662]
[1688412896958,21.87,19.342,19.332,124.662]
[1688412898149,21.87,19.342,19.332,21.88]
[1688412898573,55.0,19.341,19.332,21.88]
[1688412898758,21.873,19.339,19.332,21.88]
[1688412904854,21.873,19.339,19.332,16.88]
[1688412905456,55.0,19.338,19.332,16.88]
[1688412905862,21.876,19.337,19.332,16.88]
[1688412907676,55.0,19.338,19.332,16.88]
[1688412907973,76.874,19.338,19.332,16.88]
[1688412917375,21.874,19.338,19.332,16.88]
[1688412918761,76.875,19.337,19.332,16.88]
[1688412926681,76.875,19.337,19.327,57.41056547]
[1688412926879,76.875,19.337,19.331,21.881]
[1688412933779,55.0,19.337,19.331,21.881]
[1688412933980,55.0,19.336,19.331,21.881]
[1688412934494,76.876,19.336,19.331,21.881]
[1688412935597,55.0,19.336,19.331,21.881]
[1688412935892,21.874,19.338,19.331,21.881]
[1688412938179,56.306,19.341,19.331,21.881]
[1688412938796,21.874,19.338,19.331,21.881]
[1688412940496,55.0,19.337,19.331,21.881]
[1688412940701,21.877,19.336,19.331,21.881]
[1688412947481,21.875,19.337,19.331,21.881]
[1688412948502,21.874,19.339,19.331,21.881]
[1688412950598,21.874,19.339,19.328,56.341]
[1688412950599,55.0,19.338,19.328,56.341]
[1688412950803,21.877,19.336,19.331,21.881]
[1688412955618,21.875,19.337,19.331,21.881]
[1688412956002,55.0,19.336,19.331,21.881]
[1688412956312,21.877,19.335,19.329,21.883]
[1688412956498,55.0,19.334,19.329,21.883]
[1688412956808,21.88,19.333,19.322,56.36]
[1688412956998,55.0,19.332,19.324,21.889]
[1688412957311,21.883,19.33,19.323,21.89]
[1688412957609,21.886,19.327,19.324,21.889]
[1688412958203,21.886,19.327,19.32,87.995]
[1688412958204,21.886,19.327,19.323,21.89]
[1688412958391,55.0,19.326,19.323,21.89]
[1688412959806,76.888,19.326,19.323,21.89]
[1688412960194,76.888,19.326,19.322,21.891]
[1688412961503,56.332,19.332,19.322,21.891]
[1688412962995,55.0,19.331,19.322,21.891]
[1688412963195,21.884,19.329,19.322,21.891]
[1688412963406,55.0,19.328,19.322,21.891]
[1688412963803,76.885,19.328,19.322,21.891]
[1688412964009,55.0,19.328,19.322,21.891]
[1688412964208,21.885,19.329,19.322,21.891]
[1688412964399,21.879,19.334,19.322,191.41889491]
[1688412964819,21.878,19.335,19.323,66.69189491]
[1688412965019,56.312,19.339,19.328,78.227]
[1688412965330,21.874,19.338,19.33,31.63]
[1688412965623,21.874,19.338,19.332,21.88]
[1688412968512,21.874,19.338,19.332,21.38]
[1688412972317,21.874,19.338,19.331,21.881]
[1688412972624,21.874,19.338,19.33,21.882]
[1688412972625,55.0,19.337,19.33,21.882]
[1688412972815,21.877,19.335,19.33,21.882]
[1688412973722,55.0,19.334,19.33,21.882]
[1688412973921,21.879,19.333,19.33,21.882]
[1688412974319,21.879,19.333,19.323,236.52652377]
[1688412974521,55.0,19.332,19.323,236.52652377]
[1688412974725,76.881,19.332,19.326,21.887]
[1688412975702,76.881,19.332,19.3,53.4874117]
[1688412975703,133.212,19.332,19.325,21.888]
[1688412975908,133.212,19.332,19.323,21.889]
[1688412976114,76.881,19.332,19.323,21.889]
[1688412977940,179.663,19.332,19.323,21.889]
[1688412979327,21.881,19.332,19.323,21.889]
[1688412979528,21.879,19.333,19.323,124.719]
[1688412979830,56.312,19.339,19.327,78.229]
[1688412980026,56.315,19.338,19.327,78.229]
[1688412980932,55.0,19.337,19.327,78.229]
[1688412981123,21.878,19.334,19.327,78.229]
[1688412981324,55.0,19.333,19.327,78.229]
[1688412981730,55.0,19.334,19.327,78.229]
[1688412982934,76.878,19.335,19.327,78.229]
[1688412983120,76.878,19.335,19.327,21.885]
[1688412983432,133.2,19.335,19.327,21.885]
[1688412987138,21.88,19.332,19.327,21.885]
[1688412987328,76.882,19.331,19.327,21.885]
[1688412989033,76.882,19.331,19.32,31.63]
[1688412989236,76.882,19.331,19.324,21.889]
[1688412989429,31.75,19.33,19.319,56.369]
[1688412989632,21.886,19.327,19.319,56.369]
[1688412990123,76.888,19.326,19.322,21.891]
[1688412993124,76.369,19.334,19.322,21.891]
[1688412993125,56.332,19.332,19.322,21.891]
[1688412993330,21.884,19.329,19.322,21.891]
[1688412995046,21.384,19.329,19.322,21.891]
[1688412998745,111.319,19.337,19.322,32.72819922]
[1688412998946,56.312,19.339,19.323,86.69189491]
[1688412999141,21.877,19.336,19.327,181.037]
[1688412999549,21.877,19.336,19.33,31.82]
[1688412999749,21.875,19.337,19.331,21.881]
[1688413007942,21.874,19.338,19.331,21.881]
[1688413008553,21.874,19.339,19.331,21.881]
[1688413008755,55.0,19.338,19.331,21.881]
[1688413010259,21.874,19.339,19.331,21.881]
[1688413010457,158.981,19.349,19.331,135.50619922]
[1688413010667,21.865,19.346,19.332,10.83719922]
[1688413010957,41.866,19.345,19.336,180.955]
[1688413011353,20.0,19.345,19.336,180.955]
[1688413011566,21.862,19.349,19.336,191.79219922]
[1688413011748,56.271,19.353,19.337,10.83719922]
[1688413011943,21.859,19.351,19.34,180.914]
[1688413012448,21.859,19.351,19.34,78.177]
[1688413014262,55.0,19.35,19.34,78.177]
[1688413014460,21.863,19.348,19.34,78.177]
[1688413016771,21.863,19.348,19.34,21.871]
[1688413016961,55.0,19.347,19.34,21.871]
[1688413017168,56.281,19.35,19.34,21.871]
[1688413017362,55.0,19.349,19.34,21.871]
[1688413018169,21.863,19.348,19.34,21.871]
[1688413019154,55.0,19.347,19.34,21.871]
[1688413019364,21.865,19.346,19.34,21.871]
[1688413021763,55.0,19.345,19.34,21.871]
[1688413021962,21.863,19.347,19.34,78.179]
[1688413022175,56.275,19.352,19.34,78.179]
[1688413022471,78.143,19.349,19.32,32.05]
[1688413022689,78.143,19.349,19.335,21.876]
[1688413022855,75.0,19.348,19.334,21.877]
[1688413023178,78.164,19.344,19.334,21.877]
[1688413023376,78.177,19.341,19.334,21.877]
[1688413023583,78.186,19.339,19.332,21.88]
[1688413023960,21.876,19.337,19.332,21.88]
[1688413024560,56.299,19.343,19.332,21.88]
[1688413024766,21.872,19.34,19.332,21.88]
[1688413024983,56.294,19.345,19.332,32.71719922]
[1688413025163,55.0,19.344,19.332,32.71719922]
[1688413026179,21.871,19.341,19.332,32.71719922]
[1688413027978,158.97,19.35,19.333,85.83719922]
[1688413028191,158.97,19.35,19.338,21.873]
[1688413028563,21.866,19.346,19.338,21.873]
[1688413029660,56.28,19.35,19.338,21.873]
[1688413030979,55.0,19.349,19.338,21.873]
[1688413031178,21.864,19.347,19.338,21.873]
[1688413032589,55.0,19.349,19.338,21.873]
[1688413032766,21.863,19.348,19.338,21.873]
[1688413032962,55.0,19.347,19.338,21.873]
[1688413033162,76.863,19.347,19.338,21.873]
[1688413033368,55.0,19.347,19.338,21.873]
[1688413033778,76.864,19.347,19.338,21.873]
[1688413034082,55.0,19.347,19.338,21.873]
[1688413036979,76.864,19.347,19.338,21.873]
[1688413038385,55.0,19.347,19.338,21.873]
[1688413038685,76.863,19.347,19.338,21.873]
[1688413039076,55.0,19.347,19.338,21.873]
[1688413039475,21.86,19.35,19.338,21.873]
[1688413040688,55.0,19.349,19.338,21.873]
[1688413041090,76.861,19.349,19.338,21.873]
[1688413044291,55.0,19.349,19.338,21.873]
[1688413044797,76.861,19.349,19.338,21.873]
[1688413053907,55.0,19.349,19.338,21.873]
[1688413054212,55.0,19.349,19.338,32.71019922]
[1688413054392,76.862,19.349,19.338,32.71019922]
[1688413057112,76.862,19.349,19.338,21.873]
[1688413064821,76.862,19.349,19.338,32.71019922]
[1688413065417,55.0,19.349,19.338,32.71019922]
[1688413065606,55.0,19.349,19.34,31.85]
[1688413065915,55.0,19.349,19.342,78.168]
[1688413066222,76.861,19.349,19.342,78.168]
[1688413068529,55.0,19.349,19.342,78.168]
[1688413068814,112.538,19.355,19.342,78.168]
[1688413069126,21.86,19.35,19.342,78.168]
[1688413069320,55.0,19.349,19.342,78.168]
[1688413069507,76.861,19.349,19.342,78.168]
[1688413071403,55.0,19.349,19.342,78.168]
[1688413071908,56.273,19.355,19.342,78.168]
[1688413072119,21.859,19.352,19.342,78.168]
[1688413072307,55.0,19.351,19.342,78.168]
[1688413072617,76.859,19.351,19.342,78.168]
[1688413072801,55.0,19.351,19.342,78.168]
[1688413073522,21.859,19.351,19.342,78.168]
[1688413073726,21.858,19.353,19.342,89.00519922]
[1688413074015,21.858,19.353,19.346,78.154]
[1688413075819,21.855,19.355,19.346,78.154]
[1688413076006,21.854,19.356,19.346,88.99119922]
[1688413077213,21.853,19.357,19.346,88.99119922]
[1688413078517,21.848,19.361,19.35,31.82]
[1688413078716,158.845,19.365,19.353,78.125]
[1688413078717,21.847,19.362,19.353,78.125]
[1688413079016,102.596,19.368,19.353,78.125]
[1688413079222,21.844,19.365,19.353,78.125]
[1688413079409,20.0,19.364,19.353,78.125]
[1688413079611,21.846,19.363,19.353,78.125]
[1688413081521,55.0,19.362,19.353,21.856]
[1688413081729,21.849,19.36,19.353,21.856]
[1688413082425,55.0,19.359,19.353,21.856]
[1688413082627,76.851,19.359,19.353,21.856]
[1688413083510,56.242,19.363,19.353,21.856]
[1688413083713,21.847,19.362,19.353,124.527]
[1688413084813,21.847,19.362,19.353,21.856]
[1688413087629,55.0,19.361,19.353,21.856]
[1688413087929,21.85,19.359,19.353,21.856]
[1688413093347,51.93,19.383,19.353,21.856]
[1688413093517,51.93,19.383,19.347,94.6424]
[1688413093518,21.838,19.37,19.36,180.726]
[1688413094035,21.838,19.37,19.36,21.848]
[1688413095244,21.838,19.37,19.36,21.849]
[1688413095446,21.838,19.37,19.359,21.849]
[1688413095626,21.838,19.37,19.355,21.854]
[1688413095627,55.0,19.369,19.355,21.854]
[1688413095820,78.079,19.365,19.353,90.9627]
[1688413096121,75.0,19.364,19.354,21.855]
[1688413096317,21.848,19.361,19.354,21.855]
[1688413096518,78.095,19.361,19.353,21.856]
[1688413098233,78.095,19.361,19.352,21.857]
[1688413098435,78.095,19.361,19.351,21.858]
[1688413098633,55.0,19.36,19.351,21.858]
[1688413098829,21.852,19.358,19.351,21.858]
[1688413112836,21.852,19.358,19.349,25.97406011]
[1688413113155,21.852,19.358,19.348,127.19779922]
[1688413113458,21.852,19.358,19.348,127.19879922]